fUST/lending_fUST_20260103
["ID","MTS","AMOUNT","RATE_DAILY","PERIOD"]
[400346301,1767405038652,-500.0,0.00013071,2]
[400346302,1767405038662,-500.0,0.00013071,2]
[400346303,1767405038672,-500.0,0.00013071,2]
[400346304,1767405038682,-500.0,0.00013071,2]
[400346305,1767405038691,-500.0,0.00013071,2]
[400346306,1767405038701,-500.0,0.00013071,2]
[400346307,1767405038711,-500.0,0.00013071,2]
[400346308,1767405038722,-500.0,0.00013071,2]
[400346309,1767405038732,-519.82670285,0.00013071,2]
[400346310,1767405038742,-500.0,0.00013071,2]
[400346311,1767405038752,-500.0,0.00013071,2]
[400346312,1767405038763,-500.0,0.00013071,2]
[400346313,1767405038773,-500.0,0.00013071,2]
[400346314,1767405038783,-500.0,0.00013071,2]
[400346315,1767405038793,-552.30265235,0.00013071,2]
[400346316,1767405038803,-500.0,0.00013071,2]
[400346317,1767405038813,-500.0,0.00013071,2]
[400346318,1767405038824,-500.0,0.00013071,2]
[400346319,1767405038834,-500.0,0.00013071,2]
[400346320,1767405038844,-500.0,0.00013071,2]
[400346321,1767405038854,-500.0,0.00013071,2]
[400346322,1767405038864,-500.0,0.00013071,2]
[400346323,1767405038875,-500.0,0.00013071,2]
[400346324,1767405038885,-500.0,0.00013071,2]
[400346325,1767405038895,-500.0,0.00013071,2]
[400346326,1767405038905,-500.0,0.00013071,2]
[400346327,1767405038914,-500.0,0.00013071,2]
[400346328,1767405038924,-500.0,0.00013071,2]
[400346329,1767405038934,-500.0,0.00013071,2]
[400346330,1767405038944,-500.0,0.00013071,2]
[400346331,1767405038954,-500.0,0.00013071,2]
[400346332,1767405038963,-260.0,0.00013071,2]
[400346333,1767405038973,-500.0,0.00013071,2]
[400346334,1767405038983,-500.0,0.00013071,2]
[400346335,1767405038992,-500.0,0.00013071,2]
[400346336,1767405039002,-500.0,0.00013071,2]
[400346337,1767405039012,-500.0,0.00013071,2]
[400346338,1767405039022,-500.0,0.00013071,2]
[400346339,1767405039031,-500.0,0.00013071,2]
[400346340,1767405039041,-500.0,0.00013071,2]
[400346341,1767405039051,-500.0,0.00013071,2]
[400346342,1767405039062,-500.0,0.00013071,2]
[400346343,1767405039071,-500.0,0.00013071,2]
[400346344,1767405039081,-500.0,0.00013071,2]
[400346345,1767405039091,-500.0,0.00013071,2]
[400346346,1767405039101,-500.0,0.00013071,2]
[400346347,1767405039111,-500.0,0.00013071,2]
[400346348,1767405039230,-436.0977927,0.00013071,2]
[400346349,1767405039242,-500.0,0.00013071,2]
[400346350,1767405039253,-1222624.33567933,0.00013072,2]
[400346351,1767405039264,-1555.48,0.000131,2]
[400346352,1767405039274,-853.72351549,0.00013108,2]
[400346353,1767405039284,-800.0,0.00013136,2]
[400346354,1767405039294,-207.56900398,0.00013142,2]
[400346355,1767405039304,-151.0,0.00013162,2]
[400346356,1767405039314,-151.0,0.00013162,2]
[400346357,1767405039324,-151.0,0.00013162,2]
[400346358,1767405039334,-151.0,0.00013162,2]
[400346359,1767405039344,-151.0,0.00013162,2]
[400346360,1767405039354,-151.0,0.00013162,2]
[400346361,1767405039363,-250.0,0.00013164,2]
[400346362,1767405039373,-574.12855637,0.00013164,2]
[400346363,1767405039383,-250.0,0.00013164,2]
[400346364,1767405039394,-250.0,0.00013164,2]
[400346365,1767405039404,-250.0,0.00013164,2]
[400346366,1767405039414,-250.0,0.00013164,2]
[400346367,1767405039425,-250.0,0.00013164,2]
[400346368,1767405039436,-250.0,0.00013164,2]
[400346369,1767405039446,-250.0,0.00013164,2]
[400346370,1767405039456,-250.0,0.00013164,2]
[400346371,1767405039466,-273.45678121,0.00013164,2]
[400346372,1767405039476,-94958.97242323,0.00013172,2]
[400346373,1767405039702,-4892.37058041,0.00013172,2]
[400346374,1767405039715,-12774.13279906,0.00013172,2]
[400346375,1767405039727,-4175.38100511,0.00013172,2]
[400346376,1767405039739,-1865.98198275,0.00013172,2]
[400346377,1767405039751,-3088.29956927,0.00013172,2]
[400346378,1767405039763,-1362.92342815,0.00013172,2]
[400346379,1767405039775,-9003.88907233,0.00013172,2]
[400346428,1767405040440,-150.106,0.00012122,2]
[400346431,1767405040454,-722.184,0.00013172,2]
[400346707,1767405046314,-4479.21318814,0.00013172,2]
[400346724,1767405342010,210.4713342,0.0002876,120]
[400346761,1767405906952,1520.70771366,0.00028767,120]
[400346762,1767405919654,5000.0,0.00011,10]
[400346768,1767406083612,185.37,6.993e-05,2]
[400346769,1767406083887,185.35,6.993e-05,2]
[400346799,1767406232294,-252.28358607,0.00011076,2]
[400346800,1767406232304,-74.67295513,0.00011076,2]
[400346802,1767406232316,-501.32704487,0.00011076,2]
[400346804,1767406232326,-478.9,0.00011127,2]
[400346806,1767406232335,-348.2375955,0.00011532,2]
[400346808,1767406232345,-1041.66666667,0.00012113,2]
[400346810,1767406232355,-416.0,0.00012122,2]
[400346812,1767406232364,-957.8,0.00012139,2]
[400346814,1767406232374,-300.0,0.00012798,2]
[400346816,1767406232383,-300.0,0.00012798,2]
[400346817,1767406232392,-300.0,0.00012798,2]
[400346819,1767406232402,-500.0,0.00012799,2]
[400346821,1767406232412,-500.0,0.00012799,2]
[400346823,1767406232422,-500.0,0.00012799,2]
[400346824,1767406232433,-307.9732642,0.00012799,2]
[400346825,1767406232443,-500.0,0.00012799,2]
[400346826,1767406232453,-500.0,0.00012799,2]
[400346827,1767406232463,-500.0,0.00012799,2]
[400346828,1767406232472,-500.0,0.00012799,2]
[400346829,1767406232482,-359.80360058,0.00012799,2]
[400346830,1767406232493,-500.0,0.00012799,2]
[400346831,1767406232503,-500.0,0.00012799,2]
[400346832,1767406232513,-500.0,0.00012799,2]
[400346833,1767406232524,-500.0,0.00012799,2]
[400346834,1767406232650,-500.0,0.00012799,2]
[400346835,1767406232660,-500.0,0.00012799,2]
[400346836,1767406232670,-500.0,0.00012799,2]
[400346837,1767406232684,-500.0,0.00012799,2]
[400346838,1767406232694,-500.0,0.00012799,2]
[400346839,1767406232704,-500.0,0.00012799,2]
[400346840,1767406232714,-400.00000001,0.00012799,2]
[400346841,1767406232724,-500.0,0.00012799,2]
[400346842,1767406232734,-500.0,0.00012799,2]
[400346843,1767406232744,-551.3985107,0.00012799,2]
[400346844,1767406232753,-500.0,0.00012799,2]
[400346845,1767406232762,-500.0,0.00012799,2]
[400346846,1767406232772,-500.0,0.00012799,2]
[400346847,1767406232781,-500.0,0.00012799,2]
[400346848,1767406232791,-327.81271742,0.00012799,2]
[400346849,1767406232802,-500.0,0.00012799,2]
[400346850,1767406232811,-500.0,0.00012799,2]
[400346851,1767406232823,-500.0,0.00012799,2]
[400346852,1767406232834,-500.0,0.00012799,2]
[400346853,1767406232844,-500.0,0.00012799,2]
[400346854,1767406232853,-500.0,0.00012799,2]
[400346855,1767406232863,-9574.77108318,0.000128,2]
[400346856,1767406232877,-1181.77887615,0.000128,2]
[400346864,1767406238593,-17330.24111849,0.000128,2]
[400347288,1767406297438,155.90399416,0.000287,120]
[400347324,1767406507593,165.0,0.000138,45]
[400347351,1767406802272,300.0,0.00028767,120]
[400347379,1767407110568,190.27620895,0.00024029,120]
[400347382,1767407136907,5000.0,0.00011,10]
[400347400,1767407310821,160.19047409,0.00025,120]
[400347407,1767407360323,1500.0,0.00028,120]
[400347440,1767407432519,-207.42573203,0.00010959,2]
[400347441,1767407432530,-574.0,0.00010959,2]
[400347442,1767407432540,-1154.28,0.00011063,2]
[400347443,1767407432550,-290.34805776,0.00011076,2]
[400347444,1767407432560,-160.0,0.00011831,2]
[400347445,1767407432569,-192.74530361,0.00011881,2]
[400347446,1767407432579,-346.59460496,0.00011881,2]
[400347447,1767407432588,-2308.56,0.00012069,2]
[400347448,1767407432598,-713.20074911,0.00012314,2]
[400347449,1767407432607,-300.0,0.00012326,2]
[400347450,1767407432617,-2154.949005,0.00012397,2]
[400347452,1767407432628,-2128.64226475,0.00012656,2]
[400347453,1767407432638,-500.0,0.00012699,2]
[400347454,1767407432648,-208.91168388,0.00012699,2]
[400347455,1767407432658,-272.7687532,0.00012699,2]
[400347471,1767407438529,-227.2312468,0.00012699,2]
[400347472,1767407438540,-500.0,0.00012699,2]
[400347473,1767407438551,-256.79469749,0.00012699,2]
[400347474,1767407438560,-500.0,0.00012699,2]
[400347475,1767407438570,-500.0,0.00012699,2]
[400347476,1767407438580,-500.0,0.00012699,2]
[400347477,1767407438590,-500.0,0.00012699,2]
[400347478,1767407438600,-500.0,0.00012699,2]
[400347479,1767407438610,-500.0,0.00012699,2]
[400347480,1767407438621,-374.78698252,0.00012699,2]
[400347481,1767407438631,-500.0,0.00012699,2]
[400347482,1767407438642,-500.0,0.00012699,2]
[400347483,1767407438653,-500.0,0.00012699,2]
[400347484,1767407438663,-509.01327148,0.00012699,2]
[400347485,1767407438673,-500.0,0.00012699,2]
[400347486,1767407438684,-500.0,0.00012699,2]
[400347487,1767407438694,-500.0,0.00012699,2]
[400347488,1767407438705,-407.22345516,0.00012699,2]
[400347489,1767407438715,-409.2167767,0.00012699,2]
[400347490,1767407438726,-500.0,0.00012699,2]
[400347491,1767407438735,-543.06381014,0.00012699,2]
[400347492,1767407438745,-500.0,0.00012699,2]
[400347493,1767407438755,-636.00126634,0.00012699,2]
[400347494,1767407438765,-227.00709001,0.00012699,2]
[400347495,1767407438776,-252809.74095998,0.000127,2]
[400347496,1767407438786,-2263.3902264,0.00012756,2]
[400347497,1767407438797,-567.2239056,0.00012756,2]
[400347498,1767407438809,-80475.4785883,0.00012756,2]
[400347499,1767407438819,-574.12855637,0.00012792,2]
[400347500,1767407438843,-250.0,0.00012792,2]
[400347501,1767407438856,-1000.0,0.00012792,2]
[400347502,1767407438868,-250.0,0.00012792,2]
[400347503,1767407438880,-1000.0,0.00012792,2]
[400347504,1767407438892,-250.0,0.00012792,2]
[400347505,1767407438904,-1011.13393425,0.00012792,2]
[400347506,1767407438916,-250.0,0.00012792,2]
[400347507,1767407438927,-250.0,0.00012792,2]
[400347508,1767407438939,-250.0,0.00012792,2]
[400347509,1767407438950,-250.0,0.00012792,2]
[400347510,1767407438962,-250.0,0.00012792,2]
[400347511,1767407438973,-250.0,0.00012792,2]
[400347512,1767407438984,-250.0,0.00012792,2]
[400347513,1767407438994,-250.0,0.00012792,2]
[400347514,1767407439006,-173.657,0.00012799,2]
[400347515,1767407439018,-156.0,0.000128,2]
[400347516,1767407439029,-500.0,0.000128,2]
[400347517,1767407439041,-899.0,0.000128,2]
[400347518,1767407439052,-119892.61031874,0.0001287,2]
[400347519,1767407439064,-726.0,0.00012893,2]
[400347520,1767407439075,-737.0,0.00012893,2]
[400347521,1767407439086,-8595.70862997,0.000129,2]
[400347522,1767407439098,-599.0,0.00012906,2]
[400347523,1767407439110,-168.0,0.00012925,2]
[400347524,1767407439124,-400.0,0.00013,2]
[400347525,1767407439136,-41920.92139365,0.00013,7]
[400347526,1767407439149,-2948.4681883,0.00013008,2]
[400347527,1767407439159,-599.0,0.00013022,2]
[400347528,1767407439173,-6240.5772047,0.00013057,2]
[400347529,1767407439184,-160.0,0.00013059,2]
[400347530,1767407439195,-2128.64226472,0.00013059,2]
[400347531,1767407439206,-176.43365338,0.00013072,2]
[400347532,1767407439217,-299.96860537,0.00013072,2]
[400347533,1767407439227,-500.0,0.00013074,2]
[400347534,1767407439239,-3462.83,0.00013075,2]
[400347535,1767407439249,-342.61070815,0.00013076,2]
[400347536,1767407439260,-10956.2702413,0.00013082,2]
[400347537,1767407439270,-889.3277252,0.00013082,2]
[400347538,1767407439281,-158.0,0.000131,2]
[400347539,1767407439292,-599.0,0.00013105,2]
[400347540,1767407439302,-2154.949005,0.0001312,2]
[400347541,1767407439313,-599.0,0.00013143,2]
[400347542,1767407439328,-865.04,0.00013172,2]
[400347543,1767407439339,-1000.0,0.00013172,2]
[400347544,1767407439350,-1000.0,0.00013172,2]
[400347545,1767407439361,-1000.0,0.00013172,2]
[400347546,1767407439372,-262.6083687,0.00013172,2]
[400347547,1767407439384,-599.0,0.00013249,2]
[400347548,1767407439396,-500.0,0.00013273,2]
[400347549,1767407439407,-456.09862338,0.00013273,2]
[400347550,1767407439418,-500.0,0.00013273,2]
[400347551,1767407439428,-500.0,0.00013273,2]
[400347552,1767407439439,-500.0,0.00013273,2]
[400347553,1767407439450,-500.0,0.00013273,2]
[400347554,1767407439460,-500.0,0.00013273,2]
[400347555,1767407439471,-419.01333863,0.00013273,2]
[400347556,1767407439482,-500.0,0.00013273,2]
[400347557,1767407439492,-497.41752007,0.00013273,2]
[400347558,1767407439503,-500.0,0.00013273,2]
[400347559,1767407439513,-500.35603186,0.00013273,2]
[400347560,1767407439523,-501.32606222,0.00013273,2]
[400347561,1767407439535,-500.0,0.00013273,2]
[400347562,1767407439545,-500.0,0.00013273,2]
[400347563,1767407439555,-500.0,0.00013273,2]
[400347564,1767407439566,-299.93721074,0.00013291,2]
[400347565,1767407439577,-595.37131296,0.0001334,2]
[400347566,1767407439587,-500.0,0.00013348,2]
[400347567,1767407439597,-599.0,0.00013361,2]
[400347568,1767407439608,-2128.64226472,0.00013462,2]
[400347569,1767407439619,-168.0,0.00013509,2]
[400347570,1767407439629,-168.0,0.00013523,2]
[400347571,1767407439640,-599.0,0.00013527,2]
[400347572,1767407439650,-420.0,0.00013527,2]
[400347573,1767407439660,-599.0,0.00013533,2]
[400347574,1767407439778,-10000.0,0.0001354,2]
[400347575,1767407439788,-599.0,0.00013557,2]
[400347576,1767407439798,-299.93721074,0.00013565,2]
[400347577,1767407439808,-160.0,0.00013571,2]
[400347578,1767407439818,-500.0,0.00013622,2]
[400347579,1767407439829,-168.0,0.00013653,2]
[400347580,1767407439839,-599.0,0.00013655,2]
[400347581,1767407439849,-300.0,0.00013673,2]
[400347582,1767407439859,-500.0,0.00013698,2]
[400347583,1767407439869,-500.0,0.00013698,2]
[400347584,1767407439879,-500.0,0.00013698,2]
[400347585,1767407439889,-500.0,0.00013698,2]
[400347586,1767407439900,-500.0,0.00013698,2]
[400347587,1767407439910,-500.0,0.00013698,2]
[400347588,1767407439920,-500.0,0.00013698,2]
[400347589,1767407439934,-500.0,0.00013698,2]
[400347590,1767407439944,-500.0,0.00013698,2]
[400347591,1767407439959,-500.0,0.00013698,2]
[400347592,1767407439970,-500.0,0.00013698,2]
[400347593,1767407439979,-500.0,0.00013698,2]
[400347594,1767407439989,-500.0,0.00013698,2]
[400347595,1767407439999,-500.0,0.00013698,2]
[400347597,1767407440009,-500.0,0.00013698,2]
[400347598,1767407440019,-500.0,0.00013698,2]
[400347599,1767407440031,-500.0,0.00013698,2]
[400347600,1767407440052,-500.0,0.00013698,2]
[400347601,1767407440062,-298.6996969,0.00013698,2]
[400347602,1767407440073,-550.0,0.00013698,2]
[400347603,1767407440083,-151.0,0.00013698,2]
[400347604,1767407440093,-151.0,0.00013698,2]
[400347605,1767407440103,-151.0,0.00013698,2]
[400347606,1767407440113,-151.0,0.00013698,2]
[400347608,1767407440126,-1308.3,0.00013698,2]
[400347609,1767407440135,-1308.3,0.00013698,2]
[400347610,1767407440146,-1308.3,0.00013698,2]
[400347611,1767407440156,-1308.3,0.00013698,2]
[400347612,1767407440167,-1308.3,0.00013698,2]
[400347613,1767407440177,-1308.3,0.00013698,2]
[400347614,1767407440187,-1308.3,0.00013698,2]
[400347615,1767407440197,-1308.3,0.00013698,2]
[400347616,1767407440209,-1308.3,0.00013698,2]
[400347617,1767407440219,-1308.3,0.00013698,2]
[400347618,1767407440229,-1308.3,0.00013698,2]
[400347619,1767407440239,-153.693246,0.00013698,2]
[400347620,1767407440249,-1308.3,0.00013698,2]
[400347621,1767407440259,-1308.3,0.00013698,2]
[400347623,1767407440269,-1308.3,0.00013698,2]
[400347624,1767407440279,-1308.3,0.00013698,2]
[400347625,1767407440289,-1308.3,0.00013698,2]
[400347626,1767407440306,-1308.3,0.00013698,2]
[400347627,1767407440331,-1308.3,0.00013698,2]
[400347630,1767407440354,-1308.3,0.00013698,2]
[400347633,1767407440386,-1308.3,0.00013698,2]
[400347636,1767407440412,-1308.3,0.00013698,2]
[400347637,1767407440431,-1308.3,0.00013698,2]
[400347638,1767407440451,-1308.3,0.00013698,2]
[400347639,1767407440474,-1308.3909166,0.00013698,2]
[400347640,1767407440489,-12183.0415899,0.00013699,2]
[400347641,1767407440509,-1000.0,0.00013699,2]
[400347642,1767407440529,-1468.257559,0.00013699,2]
[400347643,1767407440554,-1212.584718,0.00013699,2]
[400347644,1767407440570,-155.354011,0.00013699,2]
[400347645,1767407440592,-500.0,0.00013699,2]
[400347646,1767407440609,-500.0,0.00013699,2]
[400347647,1767407440628,-500.0,0.00013699,2]
[400347648,1767407440642,-500.0,0.00013699,2]
[400347649,1767407440657,-250.57991012,0.00013699,2]
[400347650,1767407440675,-500.0,0.00013699,2]
[400347651,1767407440695,-500.0,0.00013699,2]
[400347652,1767407440712,-500.0,0.00013699,2]
[400347653,1767407440728,-502.33573542,0.00013699,2]
[400347654,1767407440745,-500.0,0.00013699,2]
[400347655,1767407440762,-500.0,0.00013699,2]
[400347656,1767407440779,-500.0,0.00013699,2]
[400347657,1767407440796,-539.6608646,0.00013699,2]
[400347658,1767407440813,-500.0,0.00013699,2]
[400347659,1767407440830,-500.0,0.00013699,2]
[400347660,1767407440849,-500.0,0.00013699,2]
[400347661,1767407440866,-500.0,0.00013699,2]
[400347663,1767407440884,-500.0,0.00013699,2]
[400347664,1767407440902,-500.0,0.00013699,2]
[400347665,1767407440918,-501.09271366,0.00013699,2]
[400347666,1767407440935,-500.0,0.00013699,2]
[400347667,1767407440953,-500.0,0.00013699,2]
[400347668,1767407440971,-500.0,0.00013699,2]
[400347669,1767407440987,-500.0,0.00013699,2]
[400347670,1767407441004,-500.0,0.00013699,2]
[400347671,1767407441021,-500.0,0.00013699,2]
[400347672,1767407441039,-500.0,0.00013699,2]
[400347673,1767407441057,-350.06978122,0.00013699,3]
[400347674,1767407441074,-500.0,0.00013699,2]
[400347675,1767407441091,-500.0,0.00013699,2]
[400347676,1767407441109,-500.0,0.00013699,2]
[400347677,1767407441126,-500.0,0.00013699,2]
[400347678,1767407441143,-500.0,0.00013699,2]
[400347679,1767407441159,-500.0,0.00013699,2]
[400347680,1767407441170,-413.49656422,0.00013699,2]
[400347681,1767407441180,-500.0,0.00013699,2]
[400347682,1767407441189,-500.0,0.00013699,2]
[400347683,1767407441200,-500.0,0.00013699,2]
[400347684,1767407441381,-500.0,0.00013699,2]
[400347685,1767407441400,-500.0,0.00013699,2]
[400347686,1767407441410,-500.0,0.00013699,2]
[400347687,1767407441420,-500.0,0.00013699,2]
[400347688,1767407441431,-421.46907793,0.00013699,2]
[400347689,1767407441440,-500.0,0.00013699,2]
[400347690,1767407441450,-599.0,0.00013768,2]
[400347691,1767407441459,-599.0,0.000138,2]
[400347692,1767407441469,-600.0,0.0001381,2]
[400347693,1767407441478,-1000.0,0.00013821,2]
[400347694,1767407441488,-1000.0,0.00013821,2]
[400347695,1767407441497,-1000.0,0.00013821,2]
[400347696,1767407441507,-1000.0,0.00013821,2]
[400347697,1767407441516,-1000.0,0.00013821,2]
[400347698,1767407441526,-1000.0,0.00013821,2]
[400347699,1767407441535,-1000.0,0.00013821,2]
[400347700,1767407441545,-1000.0,0.00013821,2]
[400347701,1767407441555,-1000.0,0.00013821,2]
[400347702,1767407441564,-1000.0,0.00013821,2]
[400347703,1767407441575,-1000.0,0.00013821,2]
[400347704,1767407441585,-599.0,0.00013821,2]
[400347705,1767407441595,-168.0,0.00013846,2]
[400347706,1767407441605,-2128.64226472,0.00013865,2]
[400347707,1767407441614,-617.40005154,0.00013888,2]
[400347708,1767407441623,-599.0,0.00013892,2]
[400347709,1767407441633,-249.94767562,0.00013894,7]
[400347710,1767407441643,-500.0,0.00013896,2]
[400347711,1767407441652,-168.0,0.00013924,2]
[400347712,1767407441662,-599.0,0.00014008,2]
[400347713,1767407441671,-168.0,0.00014017,2]
[400347714,1767407441681,-168.0,0.00014073,2]
[400347715,1767407441690,-4617.11,0.00014081,2]
[400347716,1767407441700,-168.0,0.00014105,2]
[400347717,1767407441709,-168.0,0.00014132,2]
[400347718,1767407441719,-600.0,0.00014147,2]
[400347719,1767407441728,-500.0,0.0001417,2]
[400347720,1767407441738,-2263.3902264,0.00014196,2]
[400347721,1767407441747,-567.2239056,0.00014196,2]
[400347722,1767407441757,-151.0,0.000142,2]
[400347723,1767407441767,-151.0,0.000142,2]
[400347724,1767407441776,-600.0,0.00014221,2]
[400347725,1767407441785,-1000.0,0.00014247,2]
[400347726,1767407441795,-501.67929496,0.00014247,2]
[400347727,1767407441805,-303.21131631,0.00014247,2]
[400347728,1767407441815,-993.36952203,0.00014247,2]
[400347729,1767407441824,-502.06965583,0.00014247,2]
[400347730,1767407441834,-1000.0,0.00014247,2]
[400347731,1767407441844,-502.95710695,0.00014247,2]
[400347732,1767407441854,-590.48711673,0.00014247,2]
[400347733,1767407441863,-513.8514625,0.00014247,2]
[400347734,1767407441873,-1000.0,0.00014247,2]
[400347735,1767407441883,-222.88284219,0.00014247,2]
[400347736,1767407441892,-1000.0,0.00014247,2]
[400347737,1767407441902,-1000.0,0.00014247,2]
[400347738,1767407441912,-1000.0,0.00014247,2]
[400347739,1767407441922,-1000.0,0.00014247,2]
[400347740,1767407441932,-1000.0,0.00014247,2]
[400347741,1767407441942,-1000.0,0.00014247,2]
[400347742,1767407441952,-1000.0,0.00014247,2]
[400347743,1767407441962,-1000.0,0.00014247,2]
[400347744,1767407441972,-1000.0,0.00014247,2]
[400347745,1767407441982,-1000.0,0.00014247,2]
[400347746,1767407441992,-1000.0,0.00014247,2]
[400347747,1767407442002,-708.4616056,0.00014247,2]
[400347748,1767407442012,-151.0,0.00014247,2]
[400347749,1767407442022,-151.0,0.00014247,2]
[400347750,1767407442032,-151.0,0.00014247,2]
[400347751,1767407442042,-151.0,0.00014247,2]
[400347752,1767407442053,-2128.64226472,0.00014268,2]
[400347753,1767407442063,-601.29628362,0.00014294,2]
[400347754,1767407442074,-151.0,0.000143,2]
[400347755,1767407442083,-151.0,0.000143,2]
[400347756,1767407442094,-265.885118,0.00014368,2]
[400347757,1767407442104,-164.989938,0.00014368,2]
[400347758,1767407442113,-151.0,0.00014368,2]
[400347759,1767407442126,-151.0,0.00014368,2]
[400347760,1767407442135,-151.0,0.00014368,2]
[400347761,1767407442146,-1500.0,0.00014368,2]
[400347762,1767407442156,-1500.0,0.00014368,2]
[400347763,1767407442166,-1500.0,0.00014368,2]
[400347764,1767407442178,-1500.0,0.00014368,2]
[400347765,1767407442188,-1500.0,0.00014368,2]
[400347766,1767407442201,-1500.0,0.00014368,2]
[400347767,1767407442211,-1500.0,0.00014368,2]
[400347768,1767407442221,-1009.54842698,0.00014368,2]
[400347769,1767407442231,-1500.0,0.00014368,2]
[400347770,1767407442241,-1500.0,0.00014368,2]
[400347771,1767407442251,-1500.0,0.00014368,2]
[400347772,1767407442262,-500.0,0.00014369,2]
[400347773,1767407442271,-17956.5064254,0.00014388,2]
[400347774,1767407442281,-640.24385345,0.00014436,2]
[400347775,1767407442291,-500.0,0.00014444,2]
[400347776,1767407442301,-2010.0,0.000145,2]
[400347777,1767407442311,-151.0,0.000145,2]
[400347778,1767407442320,-151.0,0.000145,2]
[400347779,1767407442330,-151.0,0.000145,2]
[400347780,1767407442340,-500.0,0.00014718,2]
[400347781,1767407442350,-151.0,0.00014736,2]
[400347782,1767407442359,-151.0,0.00014736,2]
[400347783,1767407442370,-151.0,0.00014736,2]
[400347784,1767407442381,-151.0,0.00014736,2]
[400347785,1767407442390,-151.0,0.00014736,2]
[400347786,1767407442400,-151.0,0.00014736,2]
[400347787,1767407442410,-151.0,0.00014736,2]
[400347788,1767407442420,-100000.0,0.00014736,2]
[400347789,1767407442429,-4006.6381544,0.00014752,2]
[400347790,1767407442439,-2444.6743335,0.00014756,2]
[400347791,1767407442451,-900.0,0.00014768,2]
[400347792,1767407442461,-1500.0,0.00014795,2]
[400347793,1767407442471,-1500.0,0.00014795,2]
[400347794,1767407442481,-1500.0,0.00014795,2]
[400347795,1767407442491,-1500.80733672,0.00014795,2]
[400347796,1767407442502,-953.52421478,0.00014795,2]
[400347797,1767407442512,-1500.0,0.00014795,2]
[400347798,1767407442523,-1500.0,0.00014795,2]
[400347799,1767407442533,-1500.0,0.00014795,2]
[400347800,1767407442543,-1006.27950738,0.00014795,2]
[400347801,1767407442553,-1500.0,0.00014795,2]
[400347802,1767407442563,-1500.0,0.00014795,2]
[400347803,1767407442574,-1500.0,0.00014795,2]
[400347804,1767407442583,-1301.00140986,0.00014795,2]
[400347805,1767407442593,-1500.0,0.00014795,2]
[400347806,1767407442603,-587.0,0.00014845,2]
[400347807,1767407442614,-594.14196303,0.000149,2]
[400347808,1767407442623,-2000.0,0.00014916,2]
[400347809,1767407442633,-444.71129824,0.00014916,2]
[400347810,1767407442644,-2000.0,0.00014916,2]
[400347811,1767407442653,-2000.0,0.00014916,2]
[400347812,1767407442663,-2000.0,0.00014916,2]
[400347813,1767407442673,-2000.0,0.00014916,2]
[400347814,1767407442683,-2000.0,0.00014916,2]
[400347815,1767407442692,-2000.0,0.00014916,2]
[400347816,1767407442702,-2000.0,0.00014916,2]
[400347817,1767407442712,-2000.0,0.00014916,2]
[400347818,1767407442722,-663.93287602,0.00014984,2]
[400347819,1767407442732,-500.0,0.00014992,2]
[400347820,1767407442742,-1017.50393956,0.00015,2]
[400347821,1767407442751,-37729.56632351,0.00015,2]
[400347822,1767407442761,-150.78698111,0.00015,2]
[400347823,1767407442771,-758.58908484,0.00015,2]